fUST/lending_fUST_20251119
["ID","MTS","AMOUNT","RATE_DAILY","PERIOD"]
[394367527,1763497860689,-12279.94,0.00049315,2]
[394367528,1763497860698,-12279.94,0.00049315,2]
[394367529,1763497860707,-12279.94,0.00049315,2]
[394367530,1763497860716,-12279.94,0.00049315,2]
[394367531,1763497860724,-12279.94,0.00049315,2]
[394367532,1763497860733,-12279.94,0.00049315,2]
[394367533,1763497860742,-12279.94,0.00049315,2]
[394367534,1763497860751,-12279.94,0.00049315,2]
[394367535,1763497860759,-12279.94,0.00049315,2]
[394367536,1763497860768,-12279.94,0.00049315,2]
[394367537,1763497860778,-12279.94,0.00049315,2]
[394367538,1763497860787,-12279.94,0.00049315,2]
[394367539,1763497860796,-12279.94,0.00049315,2]
[394367540,1763497860804,-12279.94,0.00049315,2]
[394367541,1763497860814,-12279.94,0.00049315,2]
[394367542,1763497860823,-12279.94,0.00049315,2]
[394367543,1763497860832,-12280.08781389,0.00049315,2]
[394367544,1763497860841,-500.0,0.00049315,120]
[394367545,1763497860850,-500.0,0.00049315,2]
[394367546,1763497860859,-500.0,0.00049315,120]
[394367547,1763497860868,-500.0,0.00049315,120]
[394367548,1763497860877,-539.36156059,0.00049315,120]
[394367549,1763497860886,-510.51009718,0.00049315,120]
[394367550,1763497860895,-522.80486135,0.00049315,120]
[394367551,1763497860907,-518.65752645,0.00049315,120]
[394367552,1763497860916,-500.0,0.00049315,60]
[394367553,1763497860924,-170.0,0.00049315,120]
[394367554,1763497860933,-500.0,0.00049315,120]
[394367555,1763497860943,-500.0,0.00049315,2]
[394367556,1763497860952,-500.0,0.00049315,7]
[394367557,1763497860960,-500.0,0.00049315,120]
[394367558,1763497860970,-388.15420214,0.00049315,120]
[394367559,1763497860979,-1000.0,0.00049315,120]
[394367560,1763497860988,-2500.0,0.00049315,30]
[394367561,1763497860996,-500.0,0.00049315,10]
[394367562,1763497861006,-834.93,0.00049315,120]
[394367563,1763497861088,-510.99498702,0.00049315,120]
[394367564,1763497861097,-500.0,0.00049315,120]
[394367565,1763497861106,-1096.17,0.00049315,60]
[394367566,1763497861115,-500.0,0.00049315,120]
[394367567,1763497861124,-603.37250779,0.00049315,120]
[394367568,1763497861132,-503.17123572,0.00049315,120]
[394367569,1763497861142,-1000.0,0.00049315,30]
[394367570,1763497861153,-522.4830275,0.00049315,120]
[394367571,1763497861162,-500.0,0.00049315,120]
[394367572,1763497861171,-511.70390583,0.00049315,120]
[394367573,1763497861181,-500.0,0.00049315,120]
[394367574,1763497861190,-500.0,0.00049315,120]
[394367575,1763497861199,-500.0,0.00049315,7]
[394367576,1763497861208,-640.46258943,0.00049315,120]
[394367577,1763497861218,-500.0,0.00049315,120]
[394367578,1763497861226,-646.16,0.00049315,120]
[394367579,1763497861235,-501.4573882,0.00049315,2]
[394367580,1763497861244,-500.0,0.00049315,120]
[394367581,1763497861252,-2215.86,0.00049315,120]
[394367582,1763497861261,-620.19541503,0.00049315,120]
[394367583,1763497861270,-500.0,0.00049315,120]
[394367584,1763497861278,-1000.0,0.00049315,120]
[394367585,1763497861287,-735.75,0.00049315,120]
[394367586,1763497861296,-197.6772618,0.00049315,120]
[394367587,1763497861304,-384.29802236,0.00049315,120]
[394367588,1763497861313,-531.45645369,0.00049315,120]
[394367589,1763497861322,-500.0,0.00049315,120]
[394367590,1763497861331,-500.0,0.00049315,120]
[394367591,1763497861339,-516.83066844,0.00049315,120]
[394367592,1763497861348,-229.8502705,0.00049315,120]
[394367593,1763497861356,-500.0,0.00049315,120]
[394367594,1763497861365,-548.10178199,0.00049315,120]
[394367595,1763497861374,-500.0,0.00049315,120]
[394367596,1763497861388,-500.0,0.00049315,120]
[394367597,1763497861396,-500.0,0.00049315,120]
[394367598,1763497861408,-361.71008414,0.00049315,120]
[394367599,1763497861418,-500.0,0.00049315,120]
[394367600,1763497861427,-500.0,0.00049315,120]
[394367601,1763497861436,-500.0,0.00049315,120]
[394367602,1763497861444,-1000.0,0.00049315,2]
[394367603,1763497861455,-628.49183645,0.00049315,120]
[394367604,1763497861464,-500.0,0.00049315,120]
[394367605,1763497861473,-500.0,0.00049315,120]
[394367606,1763497861482,-500.0,0.00049315,120]
[394367607,1763497861490,-500.0,0.00049315,120]
[394367608,1763497861499,-500.0,0.00049315,120]
[394367609,1763497861507,-797.43,0.00049315,120]
[394367610,1763497861516,-535.48647517,0.00049315,120]
[394367611,1763497861525,-278.87975029,0.00049315,120]
[394367612,1763497861534,-500.0,0.00049315,120]
[394367613,1763497861544,-500.0,0.00049315,120]
[394367614,1763497861553,-285.3489775,0.00049315,120]
[394367615,1763497861561,-648.56268006,0.00049315,120]
[394367616,1763497861571,-500.0,0.00049315,120]
[394367617,1763497861580,-604.78172512,0.00049315,120]
[394367618,1763497861589,-500.0,0.00049315,120]
[394367619,1763497861608,-500.0,0.00049315,120]
[394367620,1763497861629,-500.0,0.00049315,120]
[394367621,1763497861650,-545.93802086,0.00049315,30]
[394367622,1763497861683,-500.0,0.00049315,120]
[394367623,1763497861711,-500.0,0.00049315,120]
[394367624,1763497861737,-500.0,0.00049315,120]
[394367625,1763497861758,-500.0,0.00049315,120]
[394367626,1763497861780,-500.0,0.00049315,120]
[394367627,1763497861803,-179.55922257,0.00049315,120]
[394367628,1763497861826,-500.0,0.00049315,20]
[394367629,1763497861851,-500.0,0.00049315,20]
[394367630,1763497861873,-500.0,0.00049315,120]
[394367631,1763497861896,-500.0,0.00049315,120]
[394367632,1763497861915,-500.0,0.00049315,120]
[394367633,1763497861924,-500.0,0.00049315,120]
[394367634,1763497861933,-500.0,0.00049315,120]
[394367635,1763497861943,-500.0,0.00049315,120]
[394367636,1763497861952,-638.35983114,0.00049315,120]
[394367637,1763497861961,-500.0,0.00049315,120]
[394367638,1763497861971,-510.56938024,0.00049315,120]
[394367639,1763497861981,-500.0,0.00049315,120]
[394367640,1763497861990,-1000.0,0.00049315,2]
[394367641,1763497861999,-500.0,0.00049315,120]
[394367642,1763497862009,-500.0,0.00049315,120]
[394367643,1763497862018,-632.93565343,0.00049315,120]
[394367644,1763497862027,-162.76709793,0.00049315,120]
[394367645,1763497862036,-297.4426849,0.00049315,120]
[394367646,1763497862045,-523.83,0.00049315,7]
[394367647,1763497862054,-500.0,0.00049315,120]
[394367648,1763497862063,-500.0,0.00049315,120]
[394367649,1763497862072,-225.28639915,0.00049315,120]
[394367650,1763497862081,-506.6724034,0.00049315,120]
[394367651,1763497862090,-500.0,0.00049315,120]
[394367652,1763497862099,-518.0075481,0.00049315,120]
[394367653,1763497862108,-541.03741686,0.00049315,120]
[394367654,1763497862117,-1273.68,0.00049315,2]
[394367655,1763497862126,-500.0,0.00049315,120]
[394367656,1763497862135,-500.0,0.00049315,120]
[394367657,1763497862144,-500.0,0.00049315,120]
[394367658,1763497862155,-500.0,0.00049315,120]
[394367659,1763497862164,-500.0,0.00049315,120]
[394367660,1763497862173,-500.0,0.00049315,120]
[394367661,1763497862182,-500.0,0.00049315,120]
[394367662,1763497862191,-502.95716207,0.00049315,120]
[394367663,1763497862200,-500.0,0.00049315,2]
[394367664,1763497862209,-508.16702317,0.00049315,120]
[394367665,1763497862218,-516.05627558,0.00049315,120]
[394367666,1763497862227,-506.05808097,0.00049315,120]
[394367667,1763497862236,-1136.24,0.00049315,120]
[394367668,1763497862245,-533.71840899,0.00049315,120]
[394367669,1763497862254,-324.57532885,0.00049315,120]
[394367670,1763497862263,-560.60689827,0.00049315,120]
[394367671,1763497862272,-500.0,0.00049315,120]
[394367672,1763497862280,-500.0,0.00049315,120]
[394367673,1763497862290,-621.33,0.00049315,30]
[394367674,1763497862299,-500.0,0.00049315,120]
[394367675,1763497862308,-500.0,0.00049315,120]
[394367676,1763497862318,-861.36,0.00049315,60]
[394367677,1763497862327,-500.0,0.00049315,120]
[394367678,1763497862336,-1000.0,0.00049315,2]
[394367679,1763497862346,-516.82556053,0.00049315,120]
[394367680,1763497862354,-537.95639695,0.00049315,120]
[394367681,1763497862364,-555.44946207,0.00049315,120]
[394367682,1763497862374,-590.95663289,0.00049315,10]
[394367683,1763497862387,-500.0,0.00049315,120]
[394367684,1763497862396,-171.59827234,0.00049315,120]
[394367685,1763497862408,-500.0,0.00049315,120]
[394367686,1763497862417,-871.97,0.00049315,120]
[394367687,1763497862426,-515.72851757,0.00049315,120]
[394367688,1763497862435,-375.48412043,0.00049315,120]
[394367689,1763497862444,-500.0,0.00049315,120]
[394367690,1763497862453,-518.10198958,0.00049315,120]
[394367691,1763497862464,-500.0,0.00049315,120]
[394367692,1763497862473,-512.53259483,0.00049315,120]
[394367693,1763497862482,-636.9776239,0.00049315,120]
[394367694,1763497862491,-500.0,0.00049315,120]
[394367695,1763497862500,-500.0,0.00049315,120]
[394367696,1763497862509,-512.26644268,0.00049315,120]
[394367697,1763497862518,-938.81,0.00049315,120]
[394367698,1763497862527,-513.12898304,0.00049315,120]
[394367699,1763497862536,-618.52532328,0.00049315,120]
[394367700,1763497862545,-500.0,0.00049315,7]
[394367701,1763497862554,-500.0,0.00049315,120]
[394367702,1763497862563,-2043.3,0.00049315,120]
[394367703,1763497862571,-500.0,0.00049315,120]
[394367704,1763497862580,-500.0,0.00049315,120]
[394367705,1763497862590,-321.15808605,0.00049315,120]
[394367706,1763497862599,-662.46,0.00049315,120]
[394367707,1763497862608,-1541.98,0.00049315,120]
[394367708,1763497862617,-500.0,0.00049315,120]
[394367709,1763497862626,-500.0,0.00049315,120]
[394367710,1763497862635,-500.0,0.00049315,120]
[394367711,1763497862644,-500.0,0.00049315,7]
[394367712,1763497862724,-500.0,0.00049315,120]
[394367713,1763497862733,-632.57084708,0.00049315,120]
[394367714,1763497862742,-500.0,0.00049315,120]
[394367715,1763497862751,-505.37056382,0.00049315,120]
[394367716,1763497862759,-500.0,0.00049315,120]
[394367717,1763497862768,-513.25557392,0.00049315,120]
[394367718,1763497862777,-500.0,0.00049315,120]
[394367719,1763497862786,-500.0,0.00049315,120]
[394367720,1763497862795,-500.0,0.00049315,120]
[394367721,1763497862804,-500.0,0.00049315,120]
[394367722,1763497862812,-500.0,0.00049315,120]
[394367723,1763497862821,-526.59631208,0.00049315,120]
[394367724,1763497862830,-500.0,0.00049315,120]
[394367725,1763497862839,-500.0,0.00049315,120]
[394367726,1763497862847,-500.0,0.00049315,120]
[394367727,1763497862856,-515.0782928,0.00049315,120]
[394367728,1763497862865,-6704.53,0.00049315,3]
[394367729,1763497862875,-500.0,0.00049315,120]
[394367730,1763497862884,-232.00181667,0.00049315,120]
[394367731,1763497862893,-500.0,0.00049315,120]
[394367732,1763497862902,-500.0,0.00049315,120]
[394367733,1763497862911,-516.43823519,0.00049315,120]
[394367734,1763497862920,-646.78,0.00049315,120]
[394367735,1763497862929,-500.0,0.00049315,120]
[394367736,1763497862938,-500.0,0.00049315,120]
[394367737,1763497862948,-500.0,0.00049315,120]
[394367738,1763497862957,-529.99,0.00049315,120]
[394367739,1763497862966,-500.0,0.00049315,120]
[394367740,1763497862976,-1157.43,0.00049315,120]
[394367741,1763497862985,-500.0,0.00049315,120]
[394367742,1763497862994,-500.0,0.00049315,120]
[394367743,1763497863003,-500.0,0.00049315,120]
[394367744,1763497863012,-500.0,0.00049315,120]
[394367745,1763497863022,-664.65,0.00049315,120]
[394367746,1763497863032,-1474.21,0.00049315,120]
[394367747,1763497863041,-500.0,0.00049315,120]
[394367748,1763497863050,-423.25464821,0.00049315,120]
[394367749,1763497863059,-1546.16,0.00049315,3]
[394367750,1763497863069,-637.59006346,0.00049315,120]
[394367751,1763497863078,-735.74,0.00049315,120]
[394367752,1763497863087,-615.41729445,0.00049315,120]
[394367753,1763497863097,-516.95745059,0.00049315,120]
[394367754,1763497863106,-500.0,0.00049315,120]
[394367755,1763497863115,-500.0,0.00049315,120]
[394367756,1763497863124,-500.0,0.00049315,120]
[394367757,1763497863133,-500.0,0.00049315,120]
[394367758,1763497863142,-525.61271696,0.00049315,120]
[394367759,1763497863151,-500.0,0.00049315,120]
[394367760,1763497863161,-500.0,0.00049315,120]
[394367761,1763497863170,-500.0,0.00049315,120]
[394367762,1763497863179,-500.0,0.00049315,120]
[394367763,1763497863188,-303.28791203,0.00049315,120]
[394367764,1763497863197,-500.0,0.00049315,120]
[394367765,1763497863206,-500.0,0.00049315,120]
[394367766,1763497863214,-345.62030376,0.00049315,120]
[394367767,1763497863223,-500.0,0.00049315,120]
[394367768,1763497863232,-500.0,0.00049315,120]
[394367769,1763497863241,-500.0,0.00049315,7]
[394367770,1763497863250,-1457.2,0.00049315,120]
[394367771,1763497863259,-500.0,0.00049315,120]
[394367772,1763497863268,-500.0,0.00049315,120]
[394367773,1763497863277,-500.0,0.00049315,120]
[394367774,1763497863287,-500.0,0.00049315,120]
[394367775,1763497863296,-6855.08,0.00049315,120]
[394367776,1763497863305,-500.0,0.00049315,120]
[394367777,1763497863314,-500.0,0.00049315,120]
[394367778,1763497863323,-534.55381625,0.00049315,120]
[394367779,1763497863333,-500.0,0.00049315,120]
[394367780,1763497863342,-500.0,0.00049315,120]
[394367781,1763497863359,-500.0,0.00049315,120]
[394367782,1763497863374,-301.5764969,0.00049315,120]
[394367783,1763497863391,-226.33087862,0.00049315,120]
[394367784,1763497863407,-543.53094482,0.00049315,120]
[394367785,1763497863424,-610.79213326,0.00049315,2]
[394367786,1763497863441,-500.0,0.00049315,120]
[394367787,1763497863457,-500.0,0.00049315,120]
[394367788,1763497863471,-524.81484148,0.00049315,120]
[394367789,1763497863487,-485.87202134,0.00049315,120]
[394367790,1763497863501,-500.0,0.00049315,30]
[394367791,1763497863513,-500.0,0.00049315,120]
[394367792,1763497863527,-500.0,0.00049315,2]
[394367793,1763497863542,-500.0,0.00049315,120]
[394367794,1763497863560,-500.0,0.00049315,120]
[394367795,1763497863576,-527.56659843,0.00049315,120]
[394367796,1763497863587,-525.8573576,0.00049315,120]
[394367797,1763497863602,-512.2525734,0.00049315,120]
[394367798,1763497863617,-521.04516871,0.00049315,120]
[394367799,1763497863631,-500.0,0.00049315,120]
[394367800,1763497863645,-500.0,0.00049315,120]
[394367801,1763497863658,-522.1331802,0.00049315,120]
[394367802,1763497863673,-250.0,0.00049315,10]
[394367803,1763497863686,-500.0,0.00049342,60]
[394367804,1763497863700,-600.0,0.0004938,2]
[394367805,1763497863713,-500.0,0.00049388,60]
[394367806,1763497863725,-789.57049505,0.00049421,60]
[394367807,1763497863738,-529907.8417,0.0004944,30]
[394367808,1763497863751,-990.94,0.00049518,30]
[394367809,1763497863763,-500.0,0.00049589,120]
[394367810,1763497863776,-519.63080104,0.00049589,5]
[394367811,1763497863788,-500.0,0.00049589,120]
[394367812,1763497863801,-502.7709872,0.00049589,120]
[394367813,1763497863813,-500.0,0.00049589,60]
[394367814,1763497863825,-500.0,0.00049589,120]
[394367815,1763497863838,-500.0,0.00049589,2]
[394367816,1763497863850,-500.0,0.00049589,7]
[394367817,1763497863863,-500.0,0.00049589,120]
[394367818,1763497863875,-1000.0,0.00049589,120]
[394367819,1763497863888,-995.84619548,0.00049589,30]
[394367820,1763497863900,-500.0,0.00049589,10]
[394367821,1763497863912,-834.93,0.00049589,120]
[394367822,1763497863925,-549.62960322,0.00049589,120]
[394367823,1763497863937,-1096.17,0.00049589,60]
[394367824,1763497863949,-500.0,0.00049589,120]
[394367825,1763497863962,-1000.0,0.00049589,30]
[394367826,1763497863974,-500.0,0.00049589,120]
[394367827,1763497863987,-500.0,0.00049589,120]
[394367828,1763497864000,-500.0,0.00049589,120]
[394367829,1763497864013,-500.0,0.00049589,7]
[394367830,1763497864025,-500.0,0.00049589,120]
[394367831,1763497864037,-646.16,0.00049589,120]
[394367832,1763497864051,-357.09245035,0.00049589,120]
[394367833,1763497864062,-2215.86,0.00049589,120]
[394367834,1763497864075,-500.0,0.00049589,120]
[394367835,1763497864087,-1000.0,0.00049589,120]
[394367836,1763497864098,-735.75,0.00049589,120]
[394367837,1763497864110,-500.0,0.00049589,120]
[394367838,1763497864122,-500.0,0.00049589,120]
[394367839,1763497864134,-500.0,0.00049589,120]
[394367840,1763497864147,-500.0,0.00049589,120]
[394367841,1763497864159,-344.69388686,0.00049589,120]
[394367842,1763497864171,-500.0,0.00049589,120]
[394367843,1763497864183,-500.0,0.00049589,120]
[394367844,1763497864196,-500.0,0.00049589,120]
[394367845,1763497864209,-500.0,0.00049589,120]
[394367846,1763497864221,-1000.0,0.00049589,2]
[394367847,1763497864233,-500.0,0.00049589,120]
[394367848,1763497864245,-500.0,0.00049589,120]
[394367849,1763497864368,-500.0,0.00049589,120]
[394367850,1763497864378,-500.0,0.00049589,120]
[394367851,1763497864390,-500.0,0.00049589,120]
[394367852,1763497864399,-797.43,0.00049589,120]
[394367853,1763497864408,-500.0,0.00049589,120]
[394367854,1763497864417,-500.0,0.00049589,120]
[394367855,1763497864427,-500.0,0.00049589,120]
[394367856,1763497864436,-500.0,0.00049589,120]
[394367857,1763497864446,-500.0,0.00049589,120]
[394367858,1763497864456,-500.0,0.00049589,120]
[394367859,1763497864466,-500.0,0.00049589,120]
[394367860,1763497864476,-500.0,0.00049589,120]
[394367861,1763497864485,-500.0,0.00049589,120]
[394367862,1763497864494,-500.0,0.00049589,120]
[394367863,1763497864503,-500.0,0.00049589,120]
[394367864,1763497864512,-505.00062817,0.00049589,20]
[394367865,1763497864522,-500.0,0.00049589,20]
[394367866,1763497864531,-150.38711809,0.00049589,120]
[394367867,1763497864540,-500.0,0.00049589,120]
[394367868,1763497864549,-500.0,0.00049589,120]
[394367869,1763497864557,-500.0,0.00049589,120]
[394367870,1763497864567,-500.0,0.00049589,120]
[394367871,1763497864576,-500.0,0.00049589,120]
[394367872,1763497864585,-500.0,0.00049589,120]
[394367873,1763497864594,-500.0,0.00049589,120]
[394367874,1763497864604,-1000.0,0.00049589,2]
[394367875,1763497864613,-163.75443008,0.00049589,120]
[394367876,1763497864622,-500.0,0.00049589,120]
[394367877,1763497864631,-523.83,0.00049589,7]
[394367878,1763497864640,-500.0,0.00049589,120]
[394367879,1763497864650,-500.0,0.00049589,120]
[394367880,1763497864659,-292.57858245,0.00049589,120]
[394367881,1763497864668,-1273.68,0.00049589,2]
[394367882,1763497864678,-500.0,0.00049589,120]
[394367883,1763497864687,-500.0,0.00049589,120]
[394367884,1763497864696,-500.0,0.00049589,120]
[394367885,1763497864706,-197.76618797,0.00049589,120]
[394367886,1763497864715,-500.0,0.00049589,120]
[394367887,1763497864724,-500.0,0.00049589,120]
[394367888,1763497864733,-500.0,0.00049589,120]
[394367889,1763497864743,-500.0,0.00049589,2]
[394367890,1763497864752,-1136.24,0.00049589,120]
[394367891,1763497864761,-456.93198969,0.00049589,120]
[394367892,1763497864771,-500.0,0.00049589,120]
[394367893,1763497864780,-621.33,0.00049589,30]
[394367894,1763497864789,-500.0,0.00049589,120]
[394367895,1763497864798,-500.0,0.00049589,120]
[394367896,1763497864807,-861.36,0.00049589,60]
[394367897,1763497864815,-500.0,0.00049589,120]
[394367898,1763497864825,-500.0,0.00049589,120]
[394367899,1763497864834,-500.0,0.00049589,120]
[394367900,1763497864843,-871.97,0.00049589,120]
[394367901,1763497864851,-154.43600451,0.00049589,120]
[394367902,1763497864861,-500.0,0.00049589,120]
[394367903,1763497864870,-387.92412931,0.00049589,120]
[394367904,1763497864879,-500.0,0.00049589,120]
[394367905,1763497864888,-938.81,0.00049589,120]
[394367906,1763497864898,-500.0,0.00049589,7]
[394367907,1763497864907,-500.0,0.00049589,120]
[394367908,1763497864916,-2043.3,0.00049589,120]
[394367909,1763497864926,-500.0,0.00049589,120]
[394367910,1763497864936,-152.84696948,0.00049589,120]
[394367911,1763497864945,-662.46,0.00049589,120]
[394367912,1763497864954,-1541.98,0.00049589,120]
[394367913,1763497864964,-500.0,0.00049589,120]
[394367914,1763497864973,-500.0,0.00049589,120]
[394367915,1763497864982,-500.0,0.00049589,120]
[394367916,1763497864991,-500.0,0.00049589,7]
[394367917,1763497865000,-500.0,0.00049589,120]
[394367918,1763497865009,-500.0,0.00049589,120]
[394367919,1763497865018,-500.0,0.00049589,120]
[394367920,1763497865027,-500.0,0.00049589,120]
[394367921,1763497865036,-500.0,0.00049589,120]
[394367922,1763497865045,-500.0,0.00049589,120]
[394367923,1763497865054,-450.95918109,0.00049589,120]
[394367924,1763497865064,-500.0,0.00049589,120]
[394367925,1763497865073,-500.0,0.00049589,120]
[394367926,1763497865082,-417.50205174,0.00049589,120]
[394367927,1763497865091,-500.0,0.00049589,120]
[394367928,1763497865100,-6704.53,0.00049589,3]
[394367929,1763497865109,-500.0,0.00049589,120]
[394367930,1763497865118,-500.0,0.00049589,120]
[394367931,1763497865127,-500.0,0.00049589,120]
[394367932,1763497865136,-646.78,0.00049589,120]
[394367933,1763497865145,-500.0,0.00049589,120]
[394367934,1763497865155,-384.23932211,0.00049589,120]
[394367935,1763497865165,-500.0,0.00049589,120]
[394367936,1763497865174,-529.99,0.00049589,120]
[394367937,1763497865183,-500.0,0.00049589,120]
[394367938,1763497865193,-1157.43,0.00049589,120]
[394367939,1763497865202,-500.0,0.00049589,120]
[394367940,1763497865211,-500.0,0.00049589,120]
[394367941,1763497865220,-420.66080221,0.00049589,120]
[394367942,1763497865229,-500.0,0.00049589,120]
[394367943,1763497865239,-664.65,0.00049589,120]
[394367944,1763497865248,-1474.21,0.00049589,120]
[394367945,1763497865257,-500.0,0.00049589,120]
[394367946,1763497865266,-1546.16,0.00049589,3]
[394367947,1763497865276,-500.0,0.00049589,120]
[394367948,1763497865285,-500.0,0.00049589,120]
[394367949,1763497865295,-181.68660349,0.00049589,120]
[394367950,1763497865303,-500.0,0.00049589,120]
[394367951,1763497865312,-194.37967494,0.00049589,120]
[394367952,1763497865322,-500.0,0.00049589,120]
[394367953,1763497865331,-500.0,0.00049589,120]
[394367954,1763497865340,-500.0,0.00049589,120]
[394367955,1763497865349,-179.96636995,0.00049589,120]
[394367956,1763497865358,-500.0,0.00049589,120]
[394367957,1763497865367,-500.0,0.00049589,120]
[394367958,1763497865377,-500.0,0.00049589,120]
[394367959,1763497865390,-500.0,0.00049589,7]
[394367960,1763497865399,-1457.2,0.00049589,120]
[394367961,1763497865409,-500.0,0.00049589,120]
[394367962,1763497865419,-500.0,0.00049589,120]
[394367963,1763497865430,-500.0,0.00049589,120]
[394367964,1763497865440,-500.0,0.00049589,120]
[394367965,1763497865449,-6855.08,0.00049589,120]
[394367966,1763497865461,-500.0,0.00049589,120]
[394367967,1763497865470,-466.77909882,0.00049589,120]
[394367968,1763497865479,-500.0,0.00049589,120]
[394367969,1763497865488,-500.0,0.00049589,120]
[394367970,1763497865498,-500.0,0.00049589,120]
[394367971,1763497865507,-500.0,0.00049589,120]
[394367972,1763497865517,-500.0,0.00049589,120]
[394367973,1763497865526,-208.81634195,0.00049589,30]
[394367974,1763497865535,-500.0,0.00049589,120]
[394367975,1763497865545,-500.0,0.00049589,2]
[394367976,1763497865554,-517.78580005,0.00049589,120]
[394367977,1763497865563,-500.0,0.00049589,120]
[394367978,1763497865572,-500.0,0.00049589,120]
[394367979,1763497865581,-500.0,0.00049589,120]
[394367980,1763497865591,-193.0,0.00049589,120]
[394367981,1763497865600,-162.01184378,0.00049671,30]
[394367982,1763497865609,-800001.08934672,0.000497,3]
[394367983,1763497865618,-332305.13471108,0.000497,3]
[394367984,1763497865728,-5828.81562136,0.000497,3]
[394367985,1763497865740,-39444.1880662,0.000497,3]
[394367986,1763497865751,-4776.28806406,0.000497,3]
[394367987,1763497865964,-151.0,0.00024658,7]
[394367988,1763497865973,-151.0,0.00024658,7]
[394367989,1763497865983,-151.0,0.00024658,7]
[394367990,1763497865992,-151.0,0.00024658,7]
[394367991,1763497866002,-3333.498,0.000269,2]
[394367992,1763497866015,-70923.562,0.000269,2]
[394367993,1763497866024,-35021.30830073,0.000284,2]
[394367994,1763497866034,-5035.1610539,0.000284,2]
[394367995,1763497867149,-3e-08,0.000284,2]
[394367996,1763497867259,-151.0,0.00024658,7]
[394367997,1763497867268,-151.0,0.00024658,7]
[394367998,1763497867277,-289.393486,0.00024658,7]
[394367999,1763497867286,-151.0,0.00024658,7]
[394368000,1763497867295,-151.0,0.00024658,7]
[394368001,1763497867303,-151.0,0.00024658,7]
[394368002,1763497867313,-151.0,0.00024658,7]
[394368003,1763497867322,-31418.17967045,0.000284,2]
[394368004,1763497867367,-2782.41097489,0.000284,2]
[394368005,1763497867377,-32647.00437864,0.000297,2]
[394368006,1763497867393,-307.33164302,0.000297,2]
[394368007,1763497867497,-496.15,0.000297,2]
[394368008,1763497867508,-40806.57397834,0.000297,2]
[394368009,1763497867517,-30492.90710641,0.000311,2]
[394368011,1763498281471,536.48,5e-05,2]
[394368012,1763498281765,536.48,5.1e-05,2]
[394368013,1763498282044,536.48,5.3e-05,2]
[394368014,1763498282350,536.48,5.4e-05,2]
[394368015,1763498282638,536.48,5.6e-05,2]
[394368016,1763498282914,536.48,5.7e-05,2]
[394368017,1763498283280,536.48,5.9e-05,2]
[394368018,1763498283578,536.48,6e-05,2]
[394368019,1763498283878,536.48,6.1e-05,2]
[394368020,1763498284157,536.48,6.3e-05,2]
[394368021,1763498284425,536.48,6.4e-05,2]
[394368022,1763498284705,536.48,6.6e-05,2]
[394368023,1763498285071,536.48,6.7e-05,2]
[394368024,1763498285322,536.48,6.9e-05,2]
[394368025,1763498285643,536.48,7e-05,2]
[394368026,1763498286007,536.48,7.1e-05,2]
[394368027,1763498286335,536.48,7.3e-05,2]